[Event "Titled Tuesday Blitz May 10 Late 2022"]
[White "Bazeev, German"]
[Black "Gurevich, Dmitry"]
[WhiteFideId "24119350"]
[BlackFideId "2000407"]
[WhiteElo "2493"]
[BlackElo "2506"]
[Result "1-0"]
[Round "07"]
[TimeControl "180+1"]
[Date "2022.05.10"]
[WhiteClock "0:01:03"]
[BlackClock "0:00:04"]

1. d4 {[%clk 0:03:00]}  Nf6 {[%clk 0:02:58]} 2. Nf3 {[%clk 0:02:48]}  e6 {[%clk 0:02:57]} 3. c4 {[%clk 0:02:49]}  a6 {[%clk 0:02:56]} 4. g3 {[%clk 0:02:46]}  c5 {[%clk 0:02:55]} 5. Bg2 {[%clk 0:02:45]}  cxd4 {[%clk 0:02:53]} 6. Nxd4 {[%clk 0:02:46]}  Qc7 {[%clk 0:02:52]} 7. O-O {[%clk 0:02:44]}  Be7 {[%clk 0:02:51]} 8. Nc3 {[%clk 0:02:44]}  O-O {[%clk 0:02:50]} 9. b3 {[%clk 0:02:40]}  d5 {[%clk 0:02:47]} 10. Bb2 {[%clk 0:02:22]}  dxc4 {[%clk 0:02:47]} 11. Rc1 {[%clk 0:02:22]}  Qa5 {[%clk 0:02:32]} 12. bxc4 {[%clk 0:02:16]}  Nbd7 {[%clk 0:02:26]} 13. Nb3 {[%clk 0:02:16]}  Qc7 {[%clk 0:02:16]} 14. e4 {[%clk 0:02:07]}  Nc5 {[%clk 0:02:05]} 15. Nd5 {[%clk 0:02:04]}  exd5 {[%clk 0:02:03]} 16. cxd5 {[%clk 0:02:05]}  Rd8 {[%clk 0:00:55]} 17. Qc2 {[%clk 0:01:36]}  b6 {[%clk 0:00:48]} 18. Bxf6 {[%clk 0:01:25]}  Bxf6 {[%clk 0:00:44]} 19. f4 {[%clk 0:01:19]}  Bb7 {[%clk 0:00:35]} 20. Rfd1 {[%clk 0:01:18]}  Qe7 {[%clk 0:00:28]} 21. Nxc5 {[%clk 0:01:12]}  Qxc5+ {[%clk 0:00:26]} 22. Qxc5 {[%clk 0:01:11]}  bxc5 {[%clk 0:00:26]} 23. e5 {[%clk 0:01:12]}  Be7 {[%clk 0:00:22]} 24. d6 {[%clk 0:01:12]}  Bf8 {[%clk 0:00:21]} 25. Bxb7 {[%clk 0:01:12]}  Rab8 {[%clk 0:00:10]} 26. Bd5 {[%clk 0:01:12]}  Rb2 {[%clk 0:00:05]} 27. Rxc5 {[%clk 0:01:11]}  Rd7 {[%clk 0:00:05]} 28. Bb3 {[%clk 0:01:04]}  g6 {[%clk 0:00:04]} 29. Rc7 {[%clk 0:01:03]} 1-0


[Site "https://www.chess.com"]

[Event "Titled Tuesday Blitz May 10 Late 2022"]
[White "Burke, Paul"]
[Black "Winkels, Marcel"]
[WhiteFideId "2605767"]
[BlackFideId "1003887"]
[WhiteElo "1896"]
[BlackElo "1900"]
[Result "0-1"]
[Round "07"]
[TimeControl "180+1"]
[Date "2022.05.11"]
[WhiteClock "0:00:09"]
[BlackClock "0:00:17"]

1. e4 {[%clk 0:03:00]}  g6 {[%clk 0:02:58]} 2. Nc3 {[%clk 0:02:59]}  Bg7 {[%clk 0:02:58]} 3. g3 {[%clk 0:03:00]}  d6 {[%clk 0:02:58]} 4. Bg2 {[%clk 0:03:00]}  Nf6 {[%clk 0:02:56]} 5. Nge2 {[%clk 0:03:00]}  O-O {[%clk 0:02:56]} 6. h3 {[%clk 0:03:00]}  e5 {[%clk 0:02:56]} 7. O-O {[%clk 0:02:59]}  Nc6 {[%clk 0:02:55]} 8. d3 {[%clk 0:02:59]}  Be6 {[%clk 0:02:54]} 9. f4 {[%clk 0:02:59]}  Qc8 {[%clk 0:02:52]} 10. Kh2 {[%clk 0:02:58]}  a6 {[%clk 0:02:37]} 11. Be3 {[%clk 0:02:48]}  Re8 {[%clk 0:02:31]} 12. Qd2 {[%clk 0:02:47]}  Ne7 {[%clk 0:02:26]} 13. fxe5 {[%clk 0:02:28]}  dxe5 {[%clk 0:02:24]} 14. Bg5 {[%clk 0:02:28]}  Nd7 {[%clk 0:02:19]} 15. Bxe7 {[%clk 0:02:23]}  Rxe7 {[%clk 0:02:19]} 16. Nd5 {[%clk 0:02:22]}  Bxd5 {[%clk 0:02:18]} 17. exd5 {[%clk 0:02:22]}  Nf6 {[%clk 0:02:18]} 18. Rae1 {[%clk 0:02:14]}  Qd7 {[%clk 0:02:17]} 19. c4 {[%clk 0:02:08]}  Nh5 {[%clk 0:02:08]} 20. Nc3 {[%clk 0:01:54]}  Qd6 {[%clk 0:02:04]} 21. Ne4 {[%clk 0:01:49]}  Qd8 {[%clk 0:02:00]} 22. Bf3 {[%clk 0:01:37]}  f5 {[%clk 0:01:58]} 23. Ng5 {[%clk 0:01:24]}  Qd6 {[%clk 0:01:33]} 24. Bxh5 {[%clk 0:01:21]}  gxh5 {[%clk 0:01:31]} 25. Qe2 {[%clk 0:01:18]}  Qg6 {[%clk 0:01:28]} 26. Ne6 {[%clk 0:01:11]}  Bf6 {[%clk 0:01:21]} 27. Qf3 {[%clk 0:01:04]}  f4 {[%clk 0:01:19]} 28. gxf4 {[%clk 0:01:00]}  exf4 {[%clk 0:01:16]} 29. Nxf4 {[%clk 0:00:59]}  Qf5 {[%clk 0:01:01]} 30. Ne6 {[%clk 0:00:47]}  Qxf3 {[%clk 0:00:55]} 31. Rxf3 {[%clk 0:00:46]}  Bxb2 {[%clk 0:00:54]} 32. d4 {[%clk 0:00:39]}  Kh8 {[%clk 0:00:52]} 33. Re2 {[%clk 0:00:31]}  Ba1 {[%clk 0:00:51]} 34. Re1 {[%clk 0:00:29]}  Bb2 {[%clk 0:00:50]} 35. Re2 {[%clk 0:00:29]}  Bc1 {[%clk 0:00:49]} 36. Re1 {[%clk 0:00:29]}  Bh6 {[%clk 0:00:46]} 37. Re5 {[%clk 0:00:26]}  h4 {[%clk 0:00:42]} 38. Rh5 {[%clk 0:00:24]}  Bg7 {[%clk 0:00:41]} 39. Rxh4 {[%clk 0:00:24]}  c6 {[%clk 0:00:38]} 40. Nxg7 {[%clk 0:00:22]}  Rxg7 {[%clk 0:00:37]} 41. Rg4 {[%clk 0:00:20]}  Rd7 {[%clk 0:00:34]} 42. dxc6 {[%clk 0:00:19]}  bxc6 {[%clk 0:00:34]} 43. Rf6 {[%clk 0:00:17]}  c5 {[%clk 0:00:30]} 44. d5 {[%clk 0:00:17]}  Rb8 {[%clk 0:00:29]} 45. Rc6 {[%clk 0:00:16]}  Rf8 {[%clk 0:00:26]} 46. Rxc5 {[%clk 0:00:14]}  Rdf7 {[%clk 0:00:25]} 47. Rg2 {[%clk 0:00:14]}  Rf3 {[%clk 0:00:24]} 48. Rc6 {[%clk 0:00:13]}  Rc3 {[%clk 0:00:23]} 49. d6 {[%clk 0:00:12]}  h5 {[%clk 0:00:21]} 50. d7 {[%clk 0:00:11]}  Rd3 {[%clk 0:00:18]} 51. Rc7 {[%clk 0:00:09]}  Rd8 {[%clk 0:00:17]} 0-1


[Site "https://www.chess.com"]

[Event "Titled Tuesday Blitz May 10 Late 2022"]
[White "Can, Melih Kaan"]
[Black "Baches Garcia, Guillermo"]
[WhiteFideId "6317383"]
[BlackFideId "2209764"]
[WhiteElo "2049"]
[BlackElo "2515"]
[Result "1-0"]
[Round "07"]
[TimeControl "180+1"]
[Date "2022.05.11"]
[WhiteClock "0:00:54"]
[BlackClock "0:00:31"]

1. d4 {[%clk 0:03:00]}  Nf6 {[%clk 0:02:59]} 2. c4 {[%clk 0:03:00]}  e6 {[%clk 0:03:00]} 3. Nc3 {[%clk 0:03:00]}  d5 {[%clk 0:03:00]} 4. cxd5 {[%clk 0:02:59]}  Nxd5 {[%clk 0:03:01]} 5. Nf3 {[%clk 0:02:56]}  c5 {[%clk 0:03:01]} 6. Nxd5 {[%clk 0:02:54]}  Qxd5 {[%clk 0:02:55]} 7. g3 {[%clk 0:02:53]}  cxd4 {[%clk 0:02:51]} 8. Qxd4 {[%clk 0:02:50]}  Qxd4 {[%clk 0:02:47]} 9. Nxd4 {[%clk 0:02:51]}  Bb4+ {[%clk 0:02:47]} 10. Bd2 {[%clk 0:02:51]}  Bxd2+ {[%clk 0:02:45]} 11. Kxd2 {[%clk 0:02:51]}  Ke7 {[%clk 0:02:40]} 12. Bg2 {[%clk 0:02:50]}  Rd8 {[%clk 0:02:39]} 13. Ke3 {[%clk 0:02:51]}  e5 {[%clk 0:02:25]} 14. Nb3 {[%clk 0:02:46]}  Nc6 {[%clk 0:02:18]} 15. Bxc6 {[%clk 0:02:38]}  bxc6 {[%clk 0:02:18]} 16. Rac1 {[%clk 0:02:39]}  Bd7 {[%clk 0:02:13]} 17. Rhd1 {[%clk 0:02:34]}  Be8 {[%clk 0:02:09]} 18. Nc5 {[%clk 0:02:26]}  Rab8 {[%clk 0:02:02]} 19. b3 {[%clk 0:02:23]}  f6 {[%clk 0:01:54]} 20. Rxd8 {[%clk 0:02:12]}  Rxd8 {[%clk 0:01:48]} 21. Nd3 {[%clk 0:02:11]}  g5 {[%clk 0:01:31]} 22. Nb4 {[%clk 0:01:55]}  Rd6 {[%clk 0:01:20]} 23. Rc5 {[%clk 0:01:42]}  Rd1 {[%clk 0:01:05]} 24. Ra5 {[%clk 0:01:33]}  Kd6 {[%clk 0:00:57]} 25. Rxa7 {[%clk 0:01:32]}  Bd7 {[%clk 0:00:57]} 26. Nd3 {[%clk 0:01:21]}  Rh1 {[%clk 0:00:51]} 27. a4 {[%clk 0:01:19]}  Rxh2 {[%clk 0:00:47]} 28. a5 {[%clk 0:01:19]}  Rh1 {[%clk 0:00:47]} 29. b4 {[%clk 0:01:19]}  Ra1 {[%clk 0:00:41]} 30. Nc5 {[%clk 0:01:17]}  Bf5 {[%clk 0:00:37]} 31. Rf7 {[%clk 0:01:06]}  Kd5 {[%clk 0:00:35]} 32. Rxf6 {[%clk 0:01:00]}  Bg6 {[%clk 0:00:35]} 33. Rf8 {[%clk 0:00:57]}  Ra3+ {[%clk 0:00:32]} 34. Kd2 {[%clk 0:00:57]}  Ra2+ {[%clk 0:00:33]} 35. Kc3 {[%clk 0:00:56]}  Rxe2 {[%clk 0:00:31]} 36. Rd8# {[%clk 0:00:54]} 1-0


[Site "https://www.chess.com"]

[Event "Titled Tuesday Blitz May 10 Late 2022"]
[White "Curtis, John"]
[Black "Kanyamarala, Trisha"]
[WhiteFideId "3200256"]
[BlackFideId "45004722"]
[WhiteElo "2203"]
[BlackElo "2134"]
[Result "0-1"]
[Round "07"]
[TimeControl "180+1"]
[Date "2022.05.11"]
[WhiteClock "0:00:02"]
[BlackClock "0:00:29"]

1. e4 {[%clk 0:03:00]}  c5 {[%clk 0:02:59]} 2. Nf3 {[%clk 0:03:00]}  d6 {[%clk 0:02:59]} 3. d4 {[%clk 0:03:00]}  cxd4 {[%clk 0:03:00]} 4. Nxd4 {[%clk 0:03:00]}  Nf6 {[%clk 0:03:01]} 5. Nc3 {[%clk 0:03:00]}  a6 {[%clk 0:02:58]} 6. Bg5 {[%clk 0:03:00]}  e6 {[%clk 0:02:57]} 7. f4 {[%clk 0:03:00]}  h6 {[%clk 0:02:55]} 8. Bh4 {[%clk 0:02:57]}  Be7 {[%clk 0:02:53]} 9. Qd3 {[%clk 0:02:53]}  Nc6 {[%clk 0:02:52]} 10. O-O-O {[%clk 0:02:49]}  Bd7 {[%clk 0:02:51]} 11. Be2 {[%clk 0:02:36]}  b5 {[%clk 0:02:45]} 12. Nxc6 {[%clk 0:02:25]}  Bxc6 {[%clk 0:02:45]} 13. Bf3 {[%clk 0:02:24]}  b4 {[%clk 0:02:35]} 14. Bxf6 {[%clk 0:02:02]}  gxf6 {[%clk 0:02:33]} 15. Ne2 {[%clk 0:01:57]}  e5 {[%clk 0:02:32]} 16. Kb1 {[%clk 0:01:50]}  a5 {[%clk 0:02:31]} 17. c4 {[%clk 0:01:38]}  bxc3 {[%clk 0:02:15]} 18. Nxc3 {[%clk 0:01:38]}  Rb8 {[%clk 0:02:14]} 19. Bh5 {[%clk 0:01:29]}  Rb4 {[%clk 0:02:10]} 20. Qa6 {[%clk 0:01:16]}  Rb6 {[%clk 0:02:02]} 21. Qc4 {[%clk 0:01:11]}  O-O {[%clk 0:01:53]} 22. fxe5 {[%clk 0:00:57]}  Qb8 {[%clk 0:01:51]} 23. Rd2 {[%clk 0:00:44]}  dxe5 {[%clk 0:01:48]} 24. Rc1 {[%clk 0:00:21]}  Qb7 {[%clk 0:01:46]} 25. Rcc2 {[%clk 0:00:21]}  Rb4 {[%clk 0:01:44]} 26. Qe2 {[%clk 0:00:19]}  Bxe4 {[%clk 0:01:35]} 27. Nxe4 {[%clk 0:00:10]}  Rxe4 {[%clk 0:01:36]} 28. Bf3 {[%clk 0:00:01]}  Rxe2 {[%clk 0:01:35]} 29. Bxb7 {[%clk 0:00:01]}  Re1+ {[%clk 0:01:35]} 30. Rc1 {[%clk 0:00:02]}  Rxc1+ {[%clk 0:01:30]} 31. Kxc1 {[%clk 0:00:02]}  Rb8 {[%clk 0:01:29]} 32. Rd7 {[%clk 0:00:01]}  Bc5 {[%clk 0:01:28]} 33. Bd5 {[%clk 0:00:01]}  Be3+ {[%clk 0:01:20]} 34. Kc2 {[%clk 0:00:01]}  Bd4 {[%clk 0:01:16]} 35. b3 {[%clk 0:00:01]}  Rc8+ {[%clk 0:01:15]} 36. Kd1 {[%clk 0:00:01]}  Kg7 {[%clk 0:01:13]} 37. g4 {[%clk 0:00:01]}  Kg6 {[%clk 0:01:13]} 38. h4 {[%clk 0:00:02]}  Rf8 {[%clk 0:01:11]} 39. Be4+ {[%clk 0:00:01]}  Kg7 {[%clk 0:01:10]} 40. h5 {[%clk 0:00:01]}  f5 {[%clk 0:01:09]} 41. Bxf5 {[%clk 0:00:01]}  Kf6 {[%clk 0:01:09]} 42. Ke2 {[%clk 0:00:01]}  Kg5 {[%clk 0:01:09]} 43. Kf3 {[%clk 0:00:02]}  Bc3 {[%clk 0:00:54]} 44. Ke4 {[%clk 0:00:03]}  Bd4 {[%clk 0:00:53]} 45. a4 {[%clk 0:00:04]}  Rb8 {[%clk 0:00:52]} 46. Kd5 {[%clk 0:00:04]}  Rxb3 {[%clk 0:00:52]} 47. Rxf7 {[%clk 0:00:05]}  Rb4 {[%clk 0:00:52]} 48. Ke4 {[%clk 0:00:06]}  Bb2+ {[%clk 0:00:49]} 49. Kd5 {[%clk 0:00:06]}  Rxa4 {[%clk 0:00:49]} 50. Rg7+ {[%clk 0:00:05]}  Kh4 {[%clk 0:00:48]} 51. Rg6 {[%clk 0:00:06]}  Bc1 {[%clk 0:00:48]} 52. g5 {[%clk 0:00:06]}  Bxg5 {[%clk 0:00:46]} 53. Kxe5 {[%clk 0:00:05]}  Rb4 {[%clk 0:00:46]} 54. Ra6 {[%clk 0:00:05]}  Rb5+ {[%clk 0:00:45]} 55. Ke6 {[%clk 0:00:06]}  Kxh5 {[%clk 0:00:42]} 56. Bd3 {[%clk 0:00:06]}  Rc5 {[%clk 0:00:40]} 57. Be2+ {[%clk 0:00:06]}  Kh4 {[%clk 0:00:39]} 58. Kd6 {[%clk 0:00:07]}  Rf5 {[%clk 0:00:36]} 59. Bd3 {[%clk 0:00:07]}  Rf3 {[%clk 0:00:29]} 60. Be4 {[%clk 0:00:03]}  Rf6+ {[%clk 0:00:29]} 61. Ke5 {[%clk 0:00:02]}  Rxa6 {[%clk 0:00:29]} 0-1


[Site "https://www.chess.com"]

[Event "Titled Tuesday Blitz May 10 Late 2022"]
[White "Diaz, Fernando"]
[Black "Leiva, Gianmarco"]
[WhiteFideId "3701255"]
[BlackFideId "3804399"]
[WhiteElo "1934"]
[BlackElo "2323"]
[Result "0-1"]
[Round "07"]
[TimeControl "180+1"]
[Date "2022.05.10"]
[WhiteClock "0:01:11"]
[BlackClock "0:01:50"]

1. e4 {[%clk 0:02:59]}  c6 {[%clk 0:02:56]} 2. d4 {[%clk 0:02:58]}  d5 {[%clk 0:02:57]} 3. exd5 {[%clk 0:02:59]}  cxd5 {[%clk 0:02:58]} 4. Bd3 {[%clk 0:03:00]}  Nc6 {[%clk 0:02:57]} 5. c3 {[%clk 0:03:01]}  g6 {[%clk 0:02:57]} 6. Bf4 {[%clk 0:03:01]}  Bf5 {[%clk 0:02:56]} 7. Bxf5 {[%clk 0:02:56]}  gxf5 {[%clk 0:02:57]} 8. Ne2 {[%clk 0:02:56]}  e6 {[%clk 0:02:56]} 9. Nd2 {[%clk 0:02:54]}  Nf6 {[%clk 0:02:56]} 10. f3 {[%clk 0:02:54]}  Rg8 {[%clk 0:02:55]} 11. O-O {[%clk 0:02:51]}  Bd6 {[%clk 0:02:49]} 12. Qb3 {[%clk 0:02:43]}  Bxf4 {[%clk 0:02:42]} 13. Nxf4 {[%clk 0:02:43]}  Qc7 {[%clk 0:02:42]} 14. Nd3 {[%clk 0:02:41]}  O-O-O {[%clk 0:02:40]} 15. Qd1 {[%clk 0:02:10]}  h5 {[%clk 0:02:33]} 16. Qe2 {[%clk 0:02:07]}  h4 {[%clk 0:02:32]} 17. Ne5 {[%clk 0:02:04]}  Nxe5 {[%clk 0:02:27]} 18. Qxe5 {[%clk 0:02:05]}  Qxe5 {[%clk 0:02:27]} 19. dxe5 {[%clk 0:02:06]}  Nh5 {[%clk 0:02:21]} 20. f4 {[%clk 0:02:01]}  Rg4 {[%clk 0:02:20]} 21. h3 {[%clk 0:01:44]}  Rxf4 {[%clk 0:02:18]} 22. Rxf4 {[%clk 0:01:44]}  Nxf4 {[%clk 0:02:18]} 23. Nf3 {[%clk 0:01:40]}  Rg8 {[%clk 0:02:12]} 24. Nxh4 {[%clk 0:01:37]}  Nxh3+ {[%clk 0:02:12]} 25. Kh2 {[%clk 0:01:34]}  Nf2 {[%clk 0:02:09]} 26. Nf3 {[%clk 0:01:27]}  Nd3 {[%clk 0:02:04]} 27. b3 {[%clk 0:01:25]}  Nf4 {[%clk 0:02:03]} 28. g3 {[%clk 0:01:24]}  Ne2 {[%clk 0:01:59]} 29. c4 {[%clk 0:01:13]}  dxc4 {[%clk 0:01:56]} 30. bxc4 {[%clk 0:01:12]}  Rxg3 {[%clk 0:01:54]} 31. Re1 {[%clk 0:01:10]}  Rxf3 {[%clk 0:01:52]} 32. Rxe2 {[%clk 0:01:11]}  Rc3 {[%clk 0:01:50]} 0-1


[Site "https://www.chess.com"]

[Event "Titled Tuesday Blitz May 10 Late 2022"]
[White "Dreev, Aleksey"]
[Black "Melkumyan, Hrant"]
[WhiteFideId "4100107"]
[BlackFideId "13302485"]
[WhiteElo "2625"]
[BlackElo "2604"]
[Result "1/2-1/2"]
[Round "07"]
[TimeControl "180+1"]
[Date "2022.05.10"]
[WhiteClock "0:00:07"]
[BlackClock "0:00:14"]

1. d4 {[%clk 0:03:00]}  Nf6 {[%clk 0:02:56]} 2. Nf3 {[%clk 0:03:00]}  g6 {[%clk 0:02:51]} 3. g3 {[%clk 0:03:00]}  b6 {[%clk 0:02:51]} 4. Bg2 {[%clk 0:03:00]}  Bb7 {[%clk 0:02:52]} 5. O-O {[%clk 0:03:00]}  Bg7 {[%clk 0:02:52]} 6. c4 {[%clk 0:03:00]}  O-O {[%clk 0:02:53]} 7. Nc3 {[%clk 0:02:59]}  Ne4 {[%clk 0:02:53]} 8. Qc2 {[%clk 0:02:52]}  Nxc3 {[%clk 0:02:52]} 9. bxc3 {[%clk 0:02:47]}  d6 {[%clk 0:02:52]} 10. e4 {[%clk 0:02:46]}  Nd7 {[%clk 0:02:52]} 11. a4 {[%clk 0:02:45]}  a5 {[%clk 0:02:47]} 12. Re1 {[%clk 0:02:45]}  e5 {[%clk 0:02:46]} 13. Be3 {[%clk 0:02:30]}  Qe7 {[%clk 0:02:45]} 14. Nd2 {[%clk 0:02:29]}  Rae8 {[%clk 0:02:41]} 15. Rab1 {[%clk 0:02:24]}  f5 {[%clk 0:02:38]} 16. exf5 {[%clk 0:01:53]}  Bxg2 {[%clk 0:02:38]} 17. Kxg2 {[%clk 0:01:48]}  gxf5 {[%clk 0:02:37]} 18. Nf3 {[%clk 0:01:19]}  Qf7 {[%clk 0:02:31]} 19. c5 {[%clk 0:00:36]}  bxc5 {[%clk 0:02:19]} 20. dxc5 {[%clk 0:00:31]}  f4 {[%clk 0:02:19]} 21. gxf4 {[%clk 0:00:31]}  Nxc5 {[%clk 0:02:04]} 22. Bxc5 {[%clk 0:00:29]}  Qxf4 {[%clk 0:02:02]} 23. Qe4 {[%clk 0:00:29]}  dxc5 {[%clk 0:02:02]} 24. Qxf4 {[%clk 0:00:24]}  Rxf4 {[%clk 0:02:03]} 25. Rb5 {[%clk 0:00:23]}  Ref8 {[%clk 0:02:03]} 26. Re3 {[%clk 0:00:18]}  e4 {[%clk 0:02:03]} 27. Ng5 {[%clk 0:00:17]}  Rxf2+ {[%clk 0:02:02]} 28. Kh3 {[%clk 0:00:17]}  Bh6 {[%clk 0:01:44]} 29. Rxc5 {[%clk 0:00:16]}  R2f5 {[%clk 0:01:34]} 30. Rg3 {[%clk 0:00:17]}  Rxc5 {[%clk 0:01:16]} 31. Nxe4+ {[%clk 0:00:16]}  Kf7 {[%clk 0:01:02]} 32. Nxc5 {[%clk 0:00:16]}  Ke7 {[%clk 0:01:02]} 33. Nb3 {[%clk 0:00:15]}  Rf5 {[%clk 0:00:59]} 34. Kg4 {[%clk 0:00:15]}  Re5 {[%clk 0:00:57]} 35. Rh3 {[%clk 0:00:14]}  Rg5+ {[%clk 0:00:25]} 36. Kf3 {[%clk 0:00:12]}  Rf5+ {[%clk 0:00:25]} 37. Ke4 {[%clk 0:00:11]}  Rf6 {[%clk 0:00:14]} 38. Nxa5 {[%clk 0:00:10]}  Ra6 {[%clk 0:00:15]} 39. Nc4 {[%clk 0:00:07]}  Rxa4 {[%clk 0:00:15]} 40. Rxh6 {[%clk 0:00:07]}  Rxc4+ {[%clk 0:00:15]} 41. Kd3 {[%clk 0:00:07]}  Rf4 {[%clk 0:00:13]} 42. Rxh7+ {[%clk 0:00:08]}  Kd6 {[%clk 0:00:14]} 43. h4 {[%clk 0:00:07]}  Rf3+ {[%clk 0:00:14]} 44. Kc4 {[%clk 0:00:07]}  Rf4+ {[%clk 0:00:14]} 45. Kb3 {[%clk 0:00:07]}  Rg4 {[%clk 0:00:14]} 46. Rh6+ {[%clk 0:00:07]}  Kc5 {[%clk 0:00:13]} 47. Rh5+ {[%clk 0:00:07]}  Kc6 {[%clk 0:00:14]} 48. Rh8 {[%clk 0:00:07]}  Kc5 {[%clk 0:00:14]} 49. h5 {[%clk 0:00:08]}  Rh4 {[%clk 0:00:14]} 50. h6 {[%clk 0:00:08]}  Rh3 {[%clk 0:00:15]} 51. h7 {[%clk 0:00:07]}  Rh2 {[%clk 0:00:14]} 52. Rg8 {[%clk 0:00:06]}  Rxh7 {[%clk 0:00:14]} 53. Rg5+ {[%clk 0:00:07]} 1/2-1/2


[Site "https://www.chess.com"]

[Event "Titled Tuesday Blitz May 10 Late 2022"]
[White "Erdogdu, Mert"]
[Black "Lehtosaari, Mauri"]
[WhiteFideId "6301495"]
[BlackFideId "501999"]
[WhiteElo "2451"]
[BlackElo "2524"]
[Result "1-0"]
[Round "07"]
[TimeControl "180+1"]
[Date "2022.05.11"]
[WhiteClock "0:00:11"]
[BlackClock "0:00:06"]

1. c4 {[%clk 0:03:00]}  c6 {[%clk 0:03:00]} 2. d4 {[%clk 0:02:59]}  d5 {[%clk 0:03:00]} 3. Nf3 {[%clk 0:02:58]}  Nf6 {[%clk 0:03:00]} 4. Qc2 {[%clk 0:02:59]}  dxc4 {[%clk 0:02:59]} 5. e4 {[%clk 0:02:58]}  Bg4 {[%clk 0:02:55]} 6. Bxc4 {[%clk 0:02:56]}  Bxf3 {[%clk 0:02:46]} 7. gxf3 {[%clk 0:02:57]}  Qxd4 {[%clk 0:02:35]} 8. Be3 {[%clk 0:02:56]}  Qe5 {[%clk 0:02:35]} 9. Qb3 {[%clk 0:02:56]}  Qc7 {[%clk 0:02:09]} 10. Bxf7+ {[%clk 0:02:56]}  Kd8 {[%clk 0:02:10]} 11. Nc3 {[%clk 0:02:56]}  Nbd7 {[%clk 0:02:10]} 12. O-O-O {[%clk 0:02:55]}  e5 {[%clk 0:01:58]} 13. Kb1 {[%clk 0:02:45]}  Be7 {[%clk 0:01:36]} 14. Rd2 {[%clk 0:02:44]}  Kc8 {[%clk 0:01:34]} 15. Be6 {[%clk 0:02:41]}  Kb8 {[%clk 0:01:33]} 16. Na4 {[%clk 0:02:38]}  b5 {[%clk 0:01:30]} 17. Rhd1 {[%clk 0:02:36]}  Rd8 {[%clk 0:01:25]} 18. Nc3 {[%clk 0:02:19]}  Nb6 {[%clk 0:01:18]} 19. Rxd8+ {[%clk 0:02:05]}  Bxd8 {[%clk 0:01:19]} 20. a4 {[%clk 0:02:04]}  a6 {[%clk 0:01:01]} 21. Qb4 {[%clk 0:01:56]}  Be7 {[%clk 0:00:56]} 22. Bc5 {[%clk 0:01:38]}  Bxc5 {[%clk 0:00:56]} 23. Qxc5 {[%clk 0:01:38]}  Kb7 {[%clk 0:00:57]} 24. Rc1 {[%clk 0:01:20]}  Nxa4 {[%clk 0:00:48]} 25. Nxa4 {[%clk 0:01:16]}  bxa4 {[%clk 0:00:49]} 26. Rc4 {[%clk 0:01:16]}  a5 {[%clk 0:00:49]} 27. Rxa4 {[%clk 0:01:15]}  Ra6 {[%clk 0:00:49]} 28. Ra3 {[%clk 0:01:12]}  a4 {[%clk 0:00:30]} 29. Qb4+ {[%clk 0:01:08]}  Qb6 {[%clk 0:00:23]} 30. Qe7+ {[%clk 0:00:56]}  Qc7 {[%clk 0:00:22]} 31. Qc5 {[%clk 0:00:54]}  Ra5 {[%clk 0:00:17]} 32. Qb4+ {[%clk 0:00:46]}  Qb6 {[%clk 0:00:18]} 33. Qf8 {[%clk 0:00:38]}  Qc7 {[%clk 0:00:16]} 34. Rd3 {[%clk 0:00:34]}  Ra8 {[%clk 0:00:15]} 35. Qc5 {[%clk 0:00:34]}  Ra5 {[%clk 0:00:14]} 36. Qc3 {[%clk 0:00:30]}  Qb6 {[%clk 0:00:11]} 37. Rd6 {[%clk 0:00:22]}  a3 {[%clk 0:00:10]} 38. b3 {[%clk 0:00:20]}  Qxf2 {[%clk 0:00:08]} 39. Rd1 {[%clk 0:00:14]}  Qb2+ {[%clk 0:00:08]} 40. Qxb2 {[%clk 0:00:14]}  axb2 {[%clk 0:00:09]} 41. Kxb2 {[%clk 0:00:15]}  Kc7 {[%clk 0:00:09]} 42. Kc3 {[%clk 0:00:14]}  Rc5+ {[%clk 0:00:09]} 43. Kb2 {[%clk 0:00:14]}  Ra5 {[%clk 0:00:08]} 44. Kc3 {[%clk 0:00:14]}  Rc5+ {[%clk 0:00:08]} 45. Bc4 {[%clk 0:00:15]}  Ra5 {[%clk 0:00:08]} 46. Rg1 {[%clk 0:00:14]}  g6 {[%clk 0:00:07]} 47. Rg5 {[%clk 0:00:15]}  Kb6 {[%clk 0:00:05]} 48. h4 {[%clk 0:00:13]}  Nh5 {[%clk 0:00:06]} 49. b4 {[%clk 0:00:11]}  Ra3+ {[%clk 0:00:05]} 50. Bb3 {[%clk 0:00:12]}  Ra1 {[%clk 0:00:05]} 51. Rxe5 {[%clk 0:00:11]}  Rh1 {[%clk 0:00:06]} 52. Re7 {[%clk 0:00:11]}  Rxh4 {[%clk 0:00:06]} 53. Rxh7 {[%clk 0:00:11]}  Rh3 {[%clk 0:00:06]} 54. Bd1 {[%clk 0:00:11]}  Nf6 {[%clk 0:00:06]} 55. Rxh3 {[%clk 0:00:11]} 1-0


[Site "https://www.chess.com"]